[Event "*** SCC Grand Prix: Titled Tuesday Blitz"]
[Site "Chess.com"]
[Date "2020.09.29"]
[Round "3"]
[White "BillieKimbah"]
[Black "Karacsonyi_Gellert"]
[Result "1-0"]
[WhiteElo "2921"]
[BlackElo "2680"]
[TimeControl "180+1"]
[EndTime "10:27:21 PDT"]
[Termination "BillieKimbah won by resignation"]

1. Nf3 {[%clk 0:03:00.9]} 1... Nf6 {[%clk 0:02:59.9]} 2. e3 {[%clk 0:03:01.1]}
2... d5 {[%clk 0:03:00.2]} 3. c4 {[%clk 0:03:01]} 3... e6 {[%clk 0:03:01.1]} 4.
Nc3 {[%clk 0:03:00.5]} 4... a6 {[%clk 0:02:57.5]} 5. b3 {[%clk 0:02:59.1]} 5...
Be7 {[%clk 0:02:56.6]} 6. Bb2 {[%clk 0:02:59]} 6... O-O {[%clk 0:02:57.2]} 7. d4
{[%clk 0:02:58]} 7... b6 {[%clk 0:02:57.1]} 8. cxd5 {[%clk 0:02:54.9]} 8... exd5
{[%clk 0:02:55.4]} 9. Bd3 {[%clk 0:02:54.8]} 9... Bb7 {[%clk 0:02:55.6]} 10. O-O
{[%clk 0:02:54.1]} 10... c5 {[%clk 0:02:56.1]} 11. Ne2 {[%clk 0:02:51.2]} 11...
Nc6 {[%clk 0:02:51.3]} 12. Rc1 {[%clk 0:02:50.7]} 12... Rc8 {[%clk 0:02:50.9]}
13. dxc5 {[%clk 0:02:46.4]} 13... bxc5 {[%clk 0:02:50.5]} 14. Bxf6 {[%clk
0:02:43.9]} 14... Bxf6 {[%clk 0:02:49.4]} 15. Rxc5 {[%clk 0:02:41.3]} 15... Ne5
{[%clk 0:02:28.9]} 16. Rxc8 {[%clk 0:02:24.9]} 16... Nxf3+ {[%clk 0:02:27.7]}
17. gxf3 {[%clk 0:02:25.8]} 17... Bxc8 {[%clk 0:02:20.6]} 18. Qc2 {[%clk
0:02:19.6]} 18... h6 {[%clk 0:02:15.1]} 19. Rd1 {[%clk 0:02:18.4]} 19... Bh4
{[%clk 0:01:57.8]} 20. Ng3 {[%clk 0:02:09.3]} 20... Qf6 {[%clk 0:01:52.4]} 21.
Kg2 {[%clk 0:02:07.8]} 21... Bb7 {[%clk 0:01:38.8]} 22. Qc7 {[%clk 0:02:04.4]}
22... Ba8 {[%clk 0:01:23.4]} 23. Nf5 {[%clk 0:01:50]} 23... Qg5+ {[%clk
0:01:11.6]} 24. Kf1 {[%clk 0:01:49.6]} 24... g6 {[%clk 0:00:56.9]} 25. Nxh4
{[%clk 0:01:37.8]} 25... Qxh4 {[%clk 0:00:57.8]} 26. Qg3 {[%clk 0:01:27.8]}
26... Qf6 {[%clk 0:00:53.7]} 27. Qf4 {[%clk 0:01:21.1]} 27... Qxf4 {[%clk
0:00:38.6]} 28. exf4 {[%clk 0:01:22]} 28... Bb7 {[%clk 0:00:38.5]} 29. Rc1
{[%clk 0:01:21.5]} 29... Rc8 {[%clk 0:00:31.5]} 30. Rxc8+ {[%clk 0:01:20.4]}
30... Bxc8 {[%clk 0:00:32.4]} 31. Ke2 {[%clk 0:01:20.5]} 31... Kf8 {[%clk
0:00:32.9]} 32. Ke3 {[%clk 0:01:20.9]} 32... Ke7 {[%clk 0:00:33.5]} 33. Kd4
{[%clk 0:01:21.2]} 33... Kd6 {[%clk 0:00:33.9]} 34. b4 {[%clk 0:01:21.3]} 34...
Bb7 {[%clk 0:00:30.9]} 35. a4 {[%clk 0:01:17]} 35... Bc8 {[%clk 0:00:28.9]} 36.
a5 {[%clk 0:01:16.2]} 36... Bb7 {[%clk 0:00:28.1]} 37. b5 {[%clk 0:01:15.7]}
37... axb5 {[%clk 0:00:25.6]} 38. Bxb5 {[%clk 0:01:16.6]} 38... f6 {[%clk
0:00:23.3]} 39. h4 {[%clk 0:01:15.8]} 39... g5 {[%clk 0:00:19.7]} 40. fxg5
{[%clk 0:01:13.7]} 40... fxg5 {[%clk 0:00:19.5]} 41. h5 {[%clk 0:01:05.1]} 41...
Ba8 {[%clk 0:00:18.7]} 42. a6 {[%clk 0:01:04.3]} 42... Kc7 {[%clk 0:00:06]} 43.
Kc5 {[%clk 0:01:02.8]} 43... d4 {[%clk 0:00:05.3]} 44. Kxd4 {[%clk 0:01:01.5]}
44... Bxf3 {[%clk 0:00:05.6]} 45. Kc5 {[%clk 0:01:01.7]} 45... Bxh5 {[%clk
0:00:05.4]} 46. Bc6 {[%clk 0:01:01.9]} 46... Be8 {[%clk 0:00:02.3]} 47. Bxe8
{[%clk 0:01:01.3]} 47... h5 {[%clk 0:00:02.9]} 48. Bc6 {[%clk 0:01:00.3]} 1-0

[Event "*** SCC Grand Prix: Titled Tuesday Blitz"]
[Site "Chess.com"]
[Date "2020.09.29"]
[Round "3"]
[White "Oligan22"]
[Black "fighter2jz"]
[Result "0-1"]
[WhiteElo "2406"]
[BlackElo "2650"]
[TimeControl "180+1"]
[EndTime "10:27:21 PDT"]
[Termination "fighter2jz won by resignation"]

1. e4 {[%clk 0:03:00.9]} 1... c5 {[%clk 0:02:58.7]} 2. Nf3 {[%clk 0:03:00.7]}
2... d6 {[%clk 0:02:58.5]} 3. d4 {[%clk 0:03:01.2]} 3... cxd4 {[%clk 0:02:58.1]}
4. Nxd4 {[%clk 0:03:02.1]} 4... Nf6 {[%clk 0:02:58.1]} 5. Nc3 {[%clk 0:03:02]}
5... a6 {[%clk 0:02:58.2]} 6. Be3 {[%clk 0:03:01]} 6... e5 {[%clk 0:02:50.5]} 7.
Nf3 {[%clk 0:03:01.1]} 7... h6 {[%clk 0:02:47.7]} 8. h3 {[%clk 0:03:00.9]} 8...
Be7 {[%clk 0:02:46.4]} 9. Bc4 {[%clk 0:03:00.7]} 9... O-O {[%clk 0:02:44.9]} 10.
a4 {[%clk 0:02:40.9]} 10... Be6 {[%clk 0:02:44.2]} 11. Qe2 {[%clk 0:02:40.1]}
11... Qc7 {[%clk 0:02:30.7]} 12. Bxe6 {[%clk 0:02:27.6]} 12... fxe6 {[%clk
0:02:31.6]} 13. a5 {[%clk 0:02:24.4]} 13... Qc6 {[%clk 0:02:20.4]} 14. Bd2
{[%clk 0:02:01.2]} 14... Nbd7 {[%clk 0:02:16.8]} 15. O-O {[%clk 0:02:01.1]}
15... Rae8 {[%clk 0:02:11.2]} 16. Rfd1 {[%clk 0:01:46.6]} 16... Bd8 {[%clk
0:02:06.2]} 17. Nh4 {[%clk 0:01:42]} 17... Rf7 {[%clk 0:01:37.8]} 18. Be1 {[%clk
0:01:35.9]} 18... Nc5 {[%clk 0:01:19.6]} 19. g3 {[%clk 0:00:34.4]} 19... Nfxe4
{[%clk 0:01:07.7]} 20. Nxe4 {[%clk 0:00:35.3]} 20... Nxe4 {[%clk 0:01:04.7]} 21.
Ra3 {[%clk 0:00:34.9]} 21... Bxh4 {[%clk 0:00:45.6]} 22. gxh4 {[%clk 0:00:35.8]}
22... Ref8 {[%clk 0:00:44.7]} 23. Re3 {[%clk 0:00:29.4]} 23... Nf6 {[%clk
0:00:22.8]} 24. Red3 {[%clk 0:00:23.7]} 24... Nd5 {[%clk 0:00:21]} 25. Qg4
{[%clk 0:00:17.3]} 25... Rf6 {[%clk 0:00:19.1]} 26. c4 {[%clk 0:00:16.4]} 26...
Nf4 {[%clk 0:00:18.7]} 27. Rxd6 {[%clk 0:00:16.5]} 27... Qe4 {[%clk 0:00:16.8]}
28. h5 {[%clk 0:00:15.4]} 28... Rf5 {[%clk 0:00:13.4]} 29. h4 {[%clk 0:00:13.2]}
29... Ne2+ {[%clk 0:00:12.7]} 30. Kf1 {[%clk 0:00:08.6]} 30... Qxg4 {[%clk
0:00:11.4]} 0-1

[Event "*** SCC Grand Prix: Titled Tuesday Blitz"]
[Site "Chess.com"]
[Date "2020.09.29"]
[Round "3"]
[White "MisiekZielony"]
[Black "ErikRonka"]
[Result "0-1"]
[WhiteElo "2237"]
[BlackElo "2480"]
[TimeControl "180+1"]
[EndTime "10:27:21 PDT"]
[Termination "ErikRonka won on time"]

1. c4 {[%clk 0:03:00]} 1... c6 {[%clk 0:02:59.5]} 2. Nc3 {[%clk 0:02:59.4]} 2...
d5 {[%clk 0:03:00.4]} 3. cxd5 {[%clk 0:02:59.5]} 3... cxd5 {[%clk 0:03:01.3]} 4.
d4 {[%clk 0:02:59.3]} 4... Nf6 {[%clk 0:03:01.9]} 5. Nf3 {[%clk 0:02:59.3]} 5...
Nc6 {[%clk 0:03:02.5]} 6. Bf4 {[%clk 0:02:59.1]} 6... Bf5 {[%clk 0:03:03]} 7. e3
{[%clk 0:02:59]} 7... e6 {[%clk 0:03:03.5]} 8. Bb5 {[%clk 0:02:58.8]} 8... Nd7
{[%clk 0:03:02.7]} 9. Qa4 {[%clk 0:02:52.9]} 9... Rc8 {[%clk 0:03:02.3]} 10. O-O
{[%clk 0:02:51.7]} 10... a6 {[%clk 0:02:50.5]} 11. Bxc6 {[%clk 0:02:51.2]} 11...
Rxc6 {[%clk 0:02:51.4]} 12. Rfc1 {[%clk 0:02:43.1]} 12... Be7 {[%clk 0:02:39.8]}
13. Ne5 {[%clk 0:02:32.3]} 13... Nxe5 {[%clk 0:02:39.5]} 14. Bxe5 {[%clk
0:02:32.4]} 14... O-O {[%clk 0:02:34.9]} 15. Qd1 {[%clk 0:02:28.5]} 15... b5
{[%clk 0:02:11]} 16. Ne2 {[%clk 0:01:37.4]} 16... Rc4 {[%clk 0:01:53.6]} 17. b3
{[%clk 0:01:06.6]} 17... Rxc1 {[%clk 0:01:50.7]} 18. Qxc1 {[%clk 0:01:04.5]}
18... Qd7 {[%clk 0:01:47.5]} 19. Qb2 {[%clk 0:01:00.5]} 19... Rc8 {[%clk
0:01:23.9]} 20. Rc1 {[%clk 0:01:00]} 20... Bd3 {[%clk 0:00:54.4]} 21. Nf4 {[%clk
0:00:38.8]} 21... Bf5 {[%clk 0:00:50.3]} 22. Ne2 {[%clk 0:00:38]} 22... h6
{[%clk 0:00:44.7]} 23. f3 {[%clk 0:00:32.3]} 23... g5 {[%clk 0:00:36.4]} 24. Kf2
{[%clk 0:00:23.9]} 24... Bd3 {[%clk 0:00:36]} 25. Rc3 {[%clk 0:00:08.5]} 25...
Bg6 {[%clk 0:00:32.7]} 26. Qc1 {[%clk 0:00:06.5]} 26... Rxc3 {[%clk 0:00:33]}
27. Qxc3 {[%clk 0:00:06.5]} 27... Bb1 {[%clk 0:00:28]} 28. Qb2 {[%clk 0:00:04]}
28... Bf5 {[%clk 0:00:28]} 29. Qc3 {[%clk 0:00:04.2]} 29... Bf8 {[%clk
0:00:23.4]} 30. Bc7 {[%clk 0:00:01.3]} 30... b4 {[%clk 0:00:21.3]} 0-1

[Event "*** SCC Grand Prix: Titled Tuesday Blitz"]
[Site "Chess.com"]
[Date "2020.09.29"]
[Round "3"]
[White "Gusarov91"]
[Black "A-S-00"]
[Result "1-0"]
[WhiteElo "2595"]
[BlackElo "2250"]
[TimeControl "180+1"]
[EndTime "10:27:22 PDT"]
[Termination "Gusarov91 won on time"]

1. d4 {[%clk 0:03:00.9]} 1... d5 {[%clk 0:02:56.6]} 2. Nf3 {[%clk 0:03:00.2]}
2... Nf6 {[%clk 0:02:55.8]} 3. c4 {[%clk 0:03:00.2]} 3... c6 {[%clk 0:02:55.2]}
4. Nc3 {[%clk 0:03:00.1]} 4... a6 {[%clk 0:02:53.6]} 5. a4 {[%clk 0:02:57.3]}
5... g6 {[%clk 0:02:46.6]} 6. Bf4 {[%clk 0:02:54.1]} 6... dxc4 {[%clk
0:02:44.7]} 7. e3 {[%clk 0:02:51.3]} 7... Nd5 {[%clk 0:02:39.9]} 8. Bxb8 {[%clk
0:02:50.6]} 8... Rxb8 {[%clk 0:02:36.6]} 9. Bxc4 {[%clk 0:02:50.5]} 9... Bg7
{[%clk 0:02:33.9]} 10. Nxd5 {[%clk 0:02:48.5]} 10... cxd5 {[%clk 0:02:32.9]} 11.
Bd3 {[%clk 0:02:48]} 11... O-O {[%clk 0:02:32.2]} 12. O-O {[%clk 0:02:46.9]}
12... Bg4 {[%clk 0:02:24.2]} 13. h3 {[%clk 0:02:40.8]} 13... Bxf3 {[%clk
0:02:13]} 14. Qxf3 {[%clk 0:02:41.7]} 14... e5 {[%clk 0:01:56.1]} 15. dxe5
{[%clk 0:02:39.4]} 15... Bxe5 {[%clk 0:01:55.8]} 16. Rfd1 {[%clk 0:02:36]} 16...
Bxb2 {[%clk 0:01:50.9]} 17. Rab1 {[%clk 0:02:35.9]} 17... Qf6 {[%clk 0:01:23.6]}
18. Qxd5 {[%clk 0:02:33.8]} 18... Rfd8 {[%clk 0:01:16.6]} 19. Qb3 {[%clk
0:02:33.4]} 19... Be5 {[%clk 0:01:15.1]} 20. Be4 {[%clk 0:02:29.1]} 20... Bc7
{[%clk 0:00:41.4]} 21. Bxb7 {[%clk 0:02:16]} 21... Qe5 {[%clk 0:00:34.1]} 22. g3
{[%clk 0:02:11.8]} 22... Qf5 {[%clk 0:00:27.9]} 23. Rxd8+ {[%clk 0:01:58.9]}
23... Rxd8 {[%clk 0:00:24.4]} 24. Kg2 {[%clk 0:01:34.8]} 24... Rd2 {[%clk
0:00:21.6]} 25. Bf3 {[%clk 0:01:28.8]} 25... Bxg3 {[%clk 0:00:16.3]} 26. Kxg3
{[%clk 0:01:28.5]} 26... Qg5+ {[%clk 0:00:13.3]} 27. Bg4 {[%clk 0:01:28.6]}
27... h5 {[%clk 0:00:12.2]} 28. Qb8+ {[%clk 0:01:28]} 28... Kh7 {[%clk 0:00:12]}
29. Qf8 {[%clk 0:01:23.2]} 29... Qe5+ {[%clk 0:00:08.4]} 30. Kg2 {[%clk
0:01:23.2]} 30... Qe4+ {[%clk 0:00:08.5]} 31. Bf3 {[%clk 0:01:21.1]} 31... Qxb1
{[%clk 0:00:08.1]} 32. Qxf7+ {[%clk 0:01:21.5]} 32... Kh8 {[%clk 0:00:08.5]} 33.
Qe8+ {[%clk 0:01:20.2]} 33... Kg7 {[%clk 0:00:08.3]} 34. Be4 {[%clk 0:01:18.4]}
34... Qb6 {[%clk 0:00:05.7]} 35. Qe7+ {[%clk 0:01:18.3]} 35... Kg8 {[%clk
0:00:04.9]} 36. Qe8+ {[%clk 0:01:14]} 36... Kg7 {[%clk 0:00:04.3]} 37. a5 {[%clk
0:01:14]} 37... Qf6 {[%clk 0:00:03.5]} 38. Bf3 {[%clk 0:01:08.6]} 38... h4
{[%clk 0:00:02.1]} 39. Qa8 {[%clk 0:01:06.1]} 39... Qe6 {[%clk 0:00:01.8]} 40.
Qa7+ {[%clk 0:01:03.2]} 40... Qf7 {[%clk 0:00:01.6]} 41. Qxa6 {[%clk 0:01:02.6]}
41... Rd7 {[%clk 0:00:01.6]} 42. Qc6 {[%clk 0:01:01.9]} 42... Rc7 {[%clk
0:00:01.5]} 43. Qe4 {[%clk 0:01:01.4]} 43... Ra7 {[%clk 0:00:01.7]} 44. Qd4+
{[%clk 0:01:00.4]} 1-0

[Event "*** SCC Grand Prix: Titled Tuesday Blitz"]
[Site "Chess.com"]
[Date "2020.09.29"]
[Round "3"]
[White "Sergienko_Sergey"]
[Black "mr65"]
[Result "1-0"]
[WhiteElo "2372"]
[BlackElo "2152"]
[TimeControl "180+1"]
[EndTime "10:27:23 PDT"]
[Termination "Sergienko_Sergey won by resignation"]

1. e4 {[%clk 0:03:00.9]} 1... e5 {[%clk 0:02:58.8]} 2. Nf3 {[%clk 0:03:00.2]}
2... Nc6 {[%clk 0:02:58.2]} 3. Bb5 {[%clk 0:02:59.4]} 3... a6 {[%clk 0:02:57.6]}
4. Ba4 {[%clk 0:02:58.7]} 4... Nf6 {[%clk 0:02:57.3]} 5. Bxc6 {[%clk 0:02:57.1]}
5... dxc6 {[%clk 0:02:56.2]} 6. d3 {[%clk 0:02:56.5]} 6... Nd7 {[%clk
0:02:51.1]} 7. Nbd2 {[%clk 0:02:53.8]} 7... Be7 {[%clk 0:02:50.2]} 8. Nc4 {[%clk
0:02:53]} 8... f6 {[%clk 0:02:49.9]} 9. O-O {[%clk 0:02:51]} 9... O-O {[%clk
0:02:49]} 10. Nh4 {[%clk 0:02:46.7]} 10... Nc5 {[%clk 0:02:48.1]} 11. Nf5 {[%clk
0:02:43.9]} 11... Bxf5 {[%clk 0:02:45.8]} 12. exf5 {[%clk 0:02:43.6]} 12... e4
{[%clk 0:02:42]} 13. d4 {[%clk 0:02:41.2]} 13... Na4 {[%clk 0:02:27.7]} 14. c3
{[%clk 0:02:36.6]} 14... Nb6 {[%clk 0:02:26]} 15. Ne3 {[%clk 0:02:34.9]} 15...
Nd5 {[%clk 0:02:21.5]} 16. Qg4 {[%clk 0:02:31]} 16... Nxe3 {[%clk 0:02:13.9]}
17. Bxe3 {[%clk 0:02:27]} 17... Qd5 {[%clk 0:02:11.8]} 18. b3 {[%clk 0:02:26.8]}
18... b5 {[%clk 0:02:03.4]} 19. Rac1 {[%clk 0:02:24.8]} 19... Bd6 {[%clk
0:01:58.2]} 20. c4 {[%clk 0:02:20.9]} 20... bxc4 {[%clk 0:01:54.2]} 21. bxc4
{[%clk 0:02:20.8]} 21... Qa5 {[%clk 0:01:53.5]} 22. Qxe4 {[%clk 0:02:11.8]}
22... c5 {[%clk 0:01:51.9]} 23. dxc5 {[%clk 0:02:09.4]} 23... Be5 {[%clk
0:01:47.5]} 24. f4 {[%clk 0:01:48.1]} 24... Bc3 {[%clk 0:01:40.8]} 25. Rfd1
{[%clk 0:01:36.4]} 25... Rfe8 {[%clk 0:01:35.2]} 26. Qd5+ {[%clk 0:01:36]} 26...
Kh8 {[%clk 0:01:34.3]} 27. Bf2 {[%clk 0:01:25.6]} 27... h6 {[%clk 0:01:16.8]}
28. c6 {[%clk 0:01:11.5]} 28... Rab8 {[%clk 0:00:58.9]} 29. Qxa5 {[%clk
0:01:01.5]} 29... Bxa5 {[%clk 0:00:57.7]} 30. Rb1 {[%clk 0:01:00.6]} 30... Rbd8
{[%clk 0:00:41.9]} 31. Kf1 {[%clk 0:00:57.2]} 31... Rd2 {[%clk 0:00:35.4]} 32.
Rxd2 {[%clk 0:00:55.3]} 32... Bxd2 {[%clk 0:00:34.1]} 33. g3 {[%clk 0:00:54.8]}
33... Ba5 {[%clk 0:00:23.3]} 34. c5 {[%clk 0:00:47.7]} 34... Rd8 {[%clk
0:00:17.9]} 35. Be1 {[%clk 0:00:46.6]} 35... Bxe1 {[%clk 0:00:15.8]} 36. Rxe1
{[%clk 0:00:46.5]} 36... Rd5 {[%clk 0:00:14.3]} 37. Re7 {[%clk 0:00:46.2]} 37...
Rxc5 {[%clk 0:00:13.3]} 38. Rxc7 {[%clk 0:00:46.3]} 38... Rc1+ {[%clk 0:00:13]}
39. Ke2 {[%clk 0:00:46]} 39... Rc2+ {[%clk 0:00:13]} 40. Kd3 {[%clk 0:00:45.9]}
40... Rxa2 {[%clk 0:00:12.4]} 41. Ra7 {[%clk 0:00:44.1]} 41... Ra3+ {[%clk
0:00:12]} 42. Kd4 {[%clk 0:00:43.3]} 42... Ra4+ {[%clk 0:00:11.5]} 43. Kd5
{[%clk 0:00:43.3]} 43... Ra5+ {[%clk 0:00:11]} 44. Kd6 {[%clk 0:00:43.3]} 1-0

[Event "*** SCC Grand Prix: Titled Tuesday Blitz"]
[Site "Chess.com"]
[Date "2020.09.29"]
[Round "3"]
[White "tigra"]
[Black "killer311"]
[Result "1-0"]
[WhiteElo "2823"]
[BlackElo "2440"]
[TimeControl "180+1"]
[EndTime "10:27:24 PDT"]
[Termination "tigra won by resignation"]

1. d4 {[%clk 0:02:36.9]} 1... c6 {[%clk 0:03:00.9]} 2. Nc3 {[%clk 0:02:37]} 2...
d5 {[%clk 0:03:00.8]} 3. e4 {[%clk 0:02:37.9]} 3... dxe4 {[%clk 0:03:01.6]} 4.
Nxe4 {[%clk 0:02:38.8]} 4... Bf5 {[%clk 0:03:01.4]} 5. Ng3 {[%clk 0:02:39.1]}
5... Bg6 {[%clk 0:03:01.3]} 6. N3e2 {[%clk 0:02:40]} 6... e6 {[%clk 0:02:58.3]}
7. Nf4 {[%clk 0:02:39.7]} 7... Nf6 {[%clk 0:02:58.1]} 8. Nf3 {[%clk 0:02:34.2]}
8... Bd6 {[%clk 0:02:50.2]} 9. Nxg6 {[%clk 0:02:29.1]} 9... hxg6 {[%clk
0:02:49]} 10. g3 {[%clk 0:02:30]} 10... Qc7 {[%clk 0:02:48]} 11. Bg2 {[%clk
0:02:30]} 11... Nbd7 {[%clk 0:02:45.2]} 12. O-O {[%clk 0:02:30.9]} 12... O-O
{[%clk 0:02:39.7]} 13. c4 {[%clk 0:02:29]} 13... Rfe8 {[%clk 0:02:33.9]} 14. c5
{[%clk 0:02:28.3]} 14... Bf8 {[%clk 0:02:32.6]} 15. Bf4 {[%clk 0:02:28]} 15...
Qd8 {[%clk 0:02:29.5]} 16. Ne5 {[%clk 0:02:28.1]} 16... Nd5 {[%clk 0:02:28.1]}
17. Bxd5 {[%clk 0:02:17.5]} 17... exd5 {[%clk 0:02:29]} 18. Re1 {[%clk
0:02:13.3]} 18... Nxe5 {[%clk 0:02:27.9]} 19. Bxe5 {[%clk 0:02:14.2]} 19... Qd7
{[%clk 0:02:21.3]} 20. Qf3 {[%clk 0:02:11.1]} 20... Qf5 {[%clk 0:02:15.1]} 21.
Qb3 {[%clk 0:02:09.2]} 21... Re7 {[%clk 0:01:59.8]} 22. Bd6 {[%clk 0:02:07.7]}
22... Rxe1+ {[%clk 0:01:59.1]} 23. Rxe1 {[%clk 0:02:08.6]} 23... Bxd6 {[%clk
0:01:56]} 24. cxd6 {[%clk 0:02:07.8]} 24... Qd7 {[%clk 0:01:55.7]} 25. Re7
{[%clk 0:02:06.7]} 25... Qxd6 {[%clk 0:01:55.2]} 26. Qxb7 {[%clk 0:02:07.6]}
26... Rf8 {[%clk 0:01:36.3]} 27. Qxa7 {[%clk 0:02:06.2]} 27... Qf6 {[%clk
0:01:32.5]} 28. a4 {[%clk 0:01:19.4]} 28... g5 {[%clk 0:01:31.4]} 29. a5 {[%clk
0:01:19.2]} 29... g4 {[%clk 0:01:30.9]} 30. a6 {[%clk 0:01:11.9]} 30... Qf3
{[%clk 0:01:29.2]} 31. Re1 {[%clk 0:01:11.4]} 31... Kh7 {[%clk 0:01:11.2]} 32.
Qb7 {[%clk 0:01:03.8]} 32... Re8 {[%clk 0:00:52.4]} 33. Rxe8 {[%clk 0:00:59.3]}
33... Qd1+ {[%clk 0:00:51.4]} 34. Kg2 {[%clk 0:00:57.5]} 34... Qf3+ {[%clk
0:00:52.3]} 35. Kf1 {[%clk 0:00:54.2]} 35... Qh1+ {[%clk 0:00:52.3]} 36. Ke2
{[%clk 0:00:54.1]} 36... Qf3+ {[%clk 0:00:53.1]} 37. Kd2 {[%clk 0:00:54.3]}
37... Qxf2+ {[%clk 0:00:53.2]} 38. Kc3 {[%clk 0:00:53.7]} 38... Qf3+ {[%clk
0:00:53.2]} 39. Kb4 {[%clk 0:00:53.9]} 39... Qf1 {[%clk 0:00:43]} 40. Kc5 {[%clk
0:00:53.5]} 40... Qc4+ {[%clk 0:00:41.4]} 41. Kd6 {[%clk 0:00:50.8]} 41... Qxd4
{[%clk 0:00:42.3]} 42. Qc8 {[%clk 0:00:48.9]} 42... Qf6+ {[%clk 0:00:39.3]} 43.
Kd7 {[%clk 0:00:48.6]} 43... Qf5+ {[%clk 0:00:39]} 44. Kc7 {[%clk 0:00:48.9]}
44... Qf6 {[%clk 0:00:37.3]} 45. a7 {[%clk 0:00:44.1]} 45... c5 {[%clk
0:00:34.1]} 46. a8=Q {[%clk 0:00:42.4]} 46... d4 {[%clk 0:00:32.9]} 47. Rh8+
{[%clk 0:00:41.2]} 47... Kg6 {[%clk 0:00:32.5]} 48. Qxg4+ {[%clk 0:00:42.1]} 1-0

[Event "*** SCC Grand Prix: Titled Tuesday Blitz"]
[Site "Chess.com"]
[Date "2020.09.29"]
[Round "3"]
[White "chesslh19"]
[Black "Kislov_Oleg"]
[Result "0-1"]
[WhiteElo "2197"]
[BlackElo "2356"]
[TimeControl "180+1"]
[EndTime "10:27:24 PDT"]
[Termination "Kislov_Oleg won by checkmate"]

1. e4 {[%clk 0:03:00.9]} 1... c5 {[%clk 0:02:57.9]} 2. Nf3 {[%clk 0:03:01]} 2...
Nc6 {[%clk 0:02:54.4]} 3. d4 {[%clk 0:03:01.1]} 3... cxd4 {[%clk 0:02:54.2]} 4.
Nxd4 {[%clk 0:03:02]} 4... e5 {[%clk 0:02:52.1]} 5. Nb5 {[%clk 0:03:02.2]} 5...
d6 {[%clk 0:02:50.8]} 6. N1c3 {[%clk 0:03:02.6]} 6... a6 {[%clk 0:02:50.3]} 7.
Na3 {[%clk 0:03:02.5]} 7... b5 {[%clk 0:02:50.2]} 8. Nd5 {[%clk 0:03:02.2]} 8...
Nge7 {[%clk 0:02:49.6]} 9. c4 {[%clk 0:02:44.7]} 9... Nd4 {[%clk 0:02:48.8]} 10.
Be3 {[%clk 0:02:31.2]} 10... Nxd5 {[%clk 0:02:47.8]} 11. exd5 {[%clk 0:02:26.8]}
11... Nf5 {[%clk 0:02:47]} 12. Bd3 {[%clk 0:02:14]} 12... Nxe3 {[%clk
0:02:43.3]} 13. fxe3 {[%clk 0:02:14.5]} 13... e4 {[%clk 0:02:40.7]} 14. Be2
{[%clk 0:02:12.9]} 14... Qg5 {[%clk 0:02:37.2]} 15. Kf2 {[%clk 0:01:59.6]} 15...
Qf6+ {[%clk 0:02:28.7]} 16. Kg1 {[%clk 0:01:55.9]} 16... Qxb2 {[%clk 0:02:28.2]}
17. Nc2 {[%clk 0:01:50.3]} 17... Be7 {[%clk 0:02:07.5]} 18. cxb5 {[%clk
0:01:39.7]} 18... O-O {[%clk 0:02:05.6]} 19. bxa6 {[%clk 0:01:16.4]} 19... Bxa6
{[%clk 0:01:57.8]} 20. Bxa6 {[%clk 0:01:16]} 20... Rxa6 {[%clk 0:01:57.4]} 21.
Nd4 {[%clk 0:01:16.6]} 21... Bg5 {[%clk 0:01:48.9]} 22. h4 {[%clk 0:00:34.2]}
22... Bxe3+ {[%clk 0:01:44.8]} 23. Kh2 {[%clk 0:00:34.6]} 23... Bxd4 {[%clk
0:01:44.2]} 24. Rb1 {[%clk 0:00:33.2]} 24... Be5+ {[%clk 0:01:42.9]} 25. Kg1
{[%clk 0:00:27.3]} 25... Qc3 {[%clk 0:01:33.9]} 26. Rh3 {[%clk 0:00:25.3]} 26...
Qd4+ {[%clk 0:01:29.1]} 27. Kh1 {[%clk 0:00:21.6]} 27... Qxd1+ {[%clk
0:01:27.9]} 28. Rxd1 {[%clk 0:00:22.5]} 28... Rxa2 {[%clk 0:01:28.2]} 29. Re3
{[%clk 0:00:17.5]} 29... f5 {[%clk 0:01:25.7]} 30. g4 {[%clk 0:00:17.7]} 30...
g6 {[%clk 0:01:19.2]} 31. h5 {[%clk 0:00:13.8]} 31... Ra4 {[%clk 0:01:08.3]} 32.
hxg6 {[%clk 0:00:13.1]} 32... hxg6 {[%clk 0:00:58.5]} 33. gxf5 {[%clk
0:00:13.2]} 33... gxf5 {[%clk 0:00:59.4]} 34. Rg1+ {[%clk 0:00:13.1]} 34... Kf7
{[%clk 0:00:59.2]} 35. Rh3 {[%clk 0:00:13.3]} 35... Rg8 {[%clk 0:00:54]} 36.
Rh7+ {[%clk 0:00:12.7]} 36... Rg7 {[%clk 0:00:53.9]} 37. Rhxg7+ {[%clk
0:00:11.7]} 37... Bxg7 {[%clk 0:00:53.9]} 38. Kg2 {[%clk 0:00:11.9]} 38... Kf6
{[%clk 0:00:53.4]} 39. Rh1 {[%clk 0:00:10.6]} 39... Ke5 {[%clk 0:00:51.5]} 40.
Rh7 {[%clk 0:00:09.8]} 40... Bf6 {[%clk 0:00:51.1]} 41. Rf7 {[%clk 0:00:09.6]}
41... f4 {[%clk 0:00:50.8]} 42. Kf2 {[%clk 0:00:09.4]} 42... Ra2+ {[%clk
0:00:50.9]} 43. Ke1 {[%clk 0:00:09.1]} 43... e3 {[%clk 0:00:51]} 44. Rf8 {[%clk
0:00:08.1]} 44... f3 {[%clk 0:00:51]} 45. Kd1 {[%clk 0:00:07.6]} 45... e2+
{[%clk 0:00:48.9]} 46. Ke1 {[%clk 0:00:05.3]} 46... Bh4# {[%clk 0:00:48.8]} 0-1